bitfinex/quotes_BTCUSD_20241003
["timestamp","ask_amount","ask_price","bid_price","bid_amount"]
[1727953113617,0.07474595,61097.0,61094.0,0.163681]
[1727953113835,0.18932952,61097.0,61094.0,0.163681]
[1727953114055,0.02565452,61097.0,61094.0,0.163681]
[1727953114291,0.02865452,61097.0,61094.0,0.163681]
[1727953115729,0.02865452,61097.0,61095.0,0.163678]
[1727953116527,0.02647352,61097.0,61095.0,0.163678]
[1727953116751,0.02947352,61097.0,61096.0,0.163676]
[1727953117423,0.02647352,61097.0,61094.0,0.327363]
[1727953117644,0.02647352,61097.0,61095.0,0.163678]
[1727953117880,0.02947352,61097.0,61095.0,0.163678]
[1727953118117,0.02947352,61097.0,61096.0,0.163676]
[1727953118339,0.02647352,61097.0,61096.0,0.163676]
[1727953118584,0.02647352,61097.0,61094.0,0.327363]
[1727953118585,0.02647352,61097.0,61094.0,0.163681]
[1727953118811,0.19014752,61097.0,61094.0,0.163681]
[1727953119689,0.19314752,61097.0,61094.0,0.163681]
[1727953120145,0.02947352,61097.0,61091.0,0.327379]
[1727953120382,0.327355,61096.0,61090.0,0.327383]
[1727953120614,0.19314952,61097.0,61093.0,0.163684]
[1727953121111,0.19014952,61097.0,61093.0,0.163684]
[1727953121363,0.19314952,61097.0,61092.0,0.32737]
[1727953121609,0.19314952,61097.0,61094.0,0.163681]
[1727953122788,0.19014952,61097.0,61094.0,0.163681]
[1727953123013,0.19314952,61097.0,61094.0,0.163681]
[1727953123463,0.19014952,61097.0,61094.0,0.163681]
[1727953123974,0.19314952,61097.0,61094.0,0.163681]
[1727953125078,0.02947352,61097.0,61092.0,0.32737]
[1727953125309,0.02947352,61097.0,61089.0,0.001638]
[1727953125538,0.02947352,61097.0,61092.0,0.327373]
[1727953125758,0.19014852,61097.0,61094.0,0.163681]
[1727953126264,0.19314852,61097.0,61094.0,0.163681]
[1727953126712,0.19014852,61097.0,61094.0,0.163681]
[1727953126939,0.19314852,61097.0,61094.0,0.163681]
[1727953128065,0.16368,61095.0,61092.0,0.163686]
[1727953128300,0.163683,61094.0,61091.0,0.163689]
[1727953128552,0.163684,61094.0,61090.0,0.163692]
[1727953128838,0.49751038,61097.0,61092.0,0.163687]
[1727953129041,0.49751038,61097.0,61089.0,0.001638]
[1727953129042,0.163685,61093.0,61089.0,0.165331]
[1727953129290,0.327365,61094.0,61089.0,0.165331]
[1727953129525,0.327369,61093.0,61089.0,0.001638]
[1727953129766,0.163692,61090.0,61089.0,0.001638]
[1727953130466,0.0823,61092.0,61089.0,0.001638]
[1727953130683,0.245987,61092.0,61089.0,0.165333]
[1727953131438,0.245988,61092.0,61089.0,0.165333]
[1727953131912,0.0823,61092.0,61089.0,0.329027]
[1727953132152,0.163688,61092.0,61089.0,0.165332]
[1727953132417,0.003,61090.0,61089.0,0.165332]
[1727953132678,0.163688,61092.0,61089.0,0.165332]
[1727953133321,0.04908686,61094.0,61090.0,0.163691]
[1727953133545,0.170688,61092.0,61089.0,0.165333]
[1727953133800,0.168688,61092.0,61089.0,0.165333]
[1727953134071,0.005,61092.0,61091.0,0.41197066]
[1727953134298,0.005,61092.0,61091.0,0.16369]
[1727953135195,0.21358086,61097.0,61094.0,0.163682]
[1727953135430,0.21358086,61097.0,61095.0,0.163678]
[1727953135431,0.04990586,61097.0,61095.0,0.163678]
[1727953136357,0.05090586,61097.0,61095.0,0.163678]
[1727953136815,0.04990586,61097.0,61093.0,0.327368]
[1727953137052,0.21457986,61097.0,61094.0,0.163681]
[1727953137262,0.05090586,61097.0,61095.0,0.163677]
[1727953138373,0.04990586,61097.0,61095.0,0.163677]
[1727953138815,0.04993985,61097.0,61095.0,0.163677]
[1727953139133,0.05093985,61097.0,61095.0,0.163677]
[1727953139581,0.04993985,61097.0,61095.0,0.163677]
[1727953139982,0.05093985,61097.0,61095.0,0.163677]
[1727953140805,0.21461485,61097.0,61093.0,0.49105]
[1727953141023,0.21461485,61097.0,61094.0,0.163681]
[1727953141246,0.05093985,61097.0,61095.0,0.163678]
[1727953141507,0.05093985,61097.0,61096.0,0.163676]
[1727953141762,0.04993985,61097.0,61096.0,0.163676]
[1727953142013,0.001819,61097.0,61096.0,0.163676]
[1727953142513,0.000819,61097.0,61096.0,0.259076]
[1727953142994,0.001819,61097.0,61096.0,0.259076]
[1727953143442,0.000819,61097.0,61096.0,0.259076]
[1727953144862,0.000819,61097.0,61096.0,0.163676]
[1727953145139,0.001819,61097.0,61096.0,0.163676]
[1727953145370,0.001819,61097.0,61096.0,0.170676]
[1727953145586,0.001819,61097.0,61096.0,0.007]
[1727953145812,0.165494,61097.0,61093.0,0.327368]
[1727953146030,0.165494,61097.0,61096.0,0.007]
[1727953146031,0.002819,61097.0,61096.0,0.007]
[1727953146486,0.002819,61097.0,61096.0,0.170676]
[1727953147025,0.001819,61097.0,61096.0,0.163676]
[1727953147252,0.002819,61097.0,61096.0,0.163676]
[1727953147470,0.001819,61097.0,61093.0,0.333367]
[1727953147691,0.002819,61097.0,61096.0,0.163676]
[1727953147945,0.001819,61097.0,61094.0,0.327363]
[1727953148200,0.001819,61097.0,61095.0,0.327359]
[1727953148457,0.002819,61097.0,61095.0,0.163678]
[1727953149167,0.000819,61097.0,61095.0,0.163678]
[1727953149397,0.000819,61097.0,61096.0,0.003]
[1727953149639,0.164493,61097.0,61096.0,0.003]
[1727953149861,0.164493,61097.0,61094.0,0.163681]
[1727953150117,0.164493,61097.0,61095.0,0.003]
[1727953150367,0.165493,61097.0,61095.0,0.003]
[1727953150609,0.164493,61097.0,61094.0,0.163681]
[1727953151108,0.165493,61097.0,61096.0,0.001]
[1727953151325,0.164493,61097.0,61096.0,0.001]
[1727953151554,0.001819,61097.0,61096.0,0.001]
[1727953151834,0.164493,61097.0,61096.0,0.001]
[1727953152063,0.001819,61097.0,61096.0,0.164676]
[1727953152317,0.001819,61097.0,61096.0,0.79037041]
[1727953152793,0.001819,61097.0,61096.0,0.78937041]
[1727953153065,0.001819,61097.0,61096.0,0.356576]
[1727953153303,0.000819,61097.0,61096.0,0.356576]
[1727953153812,0.001819,61097.0,61096.0,0.356576]
[1727953154029,0.000819,61097.0,61096.0,0.360576]
[1727953154292,0.001819,61097.0,61096.0,0.360576]
[1727953154541,0.000819,61097.0,61096.0,0.60485666]
[1727953154782,0.000819,61097.0,61096.0,0.60526271]
[1727953155406,0.001819,61097.0,61096.0,0.60526271]
[1727953156831,0.000819,61097.0,61096.0,0.60226271]
[1727953157079,0.001819,61097.0,61096.0,0.85854337]
[1727953157307,0.001819,61097.0,61096.0,0.63726231]
[1727953157308,0.000819,61097.0,61096.0,0.63726231]
[1727953157561,0.000819,61097.0,61096.0,0.63226231]
[1727953157789,0.001819,61097.0,61096.0,2.65861608]
[1727953158031,0.001819,61097.0,61096.0,2.28743331]
[1727953158032,0.000819,61097.0,61096.0,2.28743331]
[1727953158313,0.001819,61097.0,61096.0,1.65767331]
[1727953158582,0.000819,61097.0,61096.0,1.64667331]
[1727953159573,0.000819,61097.0,61096.0,1.65867331]
[1727953160012,0.001819,61097.0,61096.0,1.66167331]
[1727953160241,0.000819,61097.0,61096.0,1.64667331]
[1727953160468,0.001819,61097.0,61096.0,1.65967331]
[1727953160703,0.002819,61097.0,61096.0,1.66267331]
[1727953160926,0.000819,61097.0,61096.0,1.57944931]
[1727953161153,0.000819,61097.0,61096.0,1.42960771]
[1727953161382,0.001819,61097.0,61096.0,1.44560731]
[1727953161872,0.001819,61097.0,61096.0,1.43460731]
[1727953162151,0.002819,61097.0,61096.0,1.44860731]
[1727953163115,0.002819,61097.0,61096.0,1.44560731]
[1727953163116,0.001819,61097.0,61096.0,1.44560731]
[1727953163396,0.002819,61097.0,61096.0,1.44860731]
[1727953163595,0.001819,61097.0,61096.0,1.44560731]
[1727953163839,0.001819,61097.0,61096.0,1.44860731]
[1727953164087,0.001819,61097.0,61096.0,1.43460731]
[1727953164326,0.002819,61097.0,61096.0,1.44560731]
[1727953164561,0.003819,61097.0,61096.0,1.44860731]
[1727953164828,0.002819,61097.0,61096.0,1.44560731]
[1727953166727,0.003819,61097.0,61096.0,1.44860731]
[1727953166968,0.001819,61097.0,61096.0,1.44560731]
[1727953167223,0.000819,61097.0,61096.0,1.43160731]
[1727953167467,0.178955,61097.0,61096.0,1.44860731]
[1727953168158,0.177955,61097.0,61096.0,1.43460731]
[1727953168382,0.178955,61097.0,61096.0,1.44860731]
[1727953169365,0.04895039,61133.0,61098.0,0.023]
[1727953169610,0.24828066,61122.0,61118.0,0.47312764]
[1727953169903,0.24828066,61122.0,61121.0,0.38921964]
[1727953170141,0.24828066,61130.0,61129.0,0.263588]
[1727953170381,0.0001,61138.0,61137.0,0.163567]
[1727953170628,0.0001,61138.0,61137.0,0.28917764]
[1727953171569,0.0021,61138.0,61137.0,0.29817764]
[1727953171794,0.0021,61138.0,61137.0,0.172567]
[1727953172546,0.0021,61138.0,61137.0,0.009]
[1727953172803,0.0021,61138.0,61137.0,0.272567]
[1727953173035,0.0021,61138.0,61137.0,0.172567]
[1727953173289,0.0021,61138.0,61137.0,0.006]
[1727953173537,0.0011,61138.0,61137.0,0.169567]
[1727953173771,0.0021,61138.0,61137.0,0.163567]
[1727953174003,0.0031,61138.0,61137.0,0.163567]
[1727953174230,0.0031,61138.0,61137.0,0.167567]
[1727953174501,0.0031,61138.0,61137.0,0.004]
[1727953174716,0.0011,61138.0,61137.0,0.163567]
[1727953174972,0.0031,61138.0,61137.0,0.163567]
[1727953175202,0.0021,61138.0,61137.0,0.163567]
[1727953175458,0.0021,61138.0,61136.0,0.163568]
[1727953175699,0.0021,61138.0,61135.0,0.16357]
[1727953175935,0.0021,61138.0,61137.0,0.163567]
[1727953177087,0.0011,61138.0,61137.0,0.163567]
[1727953177681,0.0001,61138.0,61137.0,0.163567]
[1727953177921,0.0001,61138.0,61137.0,0.168567]
[1727953177922,0.000919,61138.0,61137.0,0.168567]
[1727953178165,0.000919,61138.0,61137.0,0.166567]
[1727953178422,0.000919,61138.0,61137.0,0.175567]
[1727953178648,0.000919,61138.0,61137.0,0.172567]
[1727953178884,0.000919,61138.0,61137.0,0.177567]
[1727953179806,0.000919,61138.0,61137.0,0.168567]
[1727953180061,0.000919,61138.0,61137.0,0.180567]
[1727953180062,0.001919,61138.0,61137.0,0.180567]
[1727953180250,0.001919,61138.0,61137.0,0.168567]
[1727953180513,0.000919,61138.0,61137.0,0.168567]
[1727953180751,0.001919,61138.0,61137.0,0.173567]
[1727953180999,0.001919,61138.0,61137.0,0.163567]
[1727953181245,0.002919,61138.0,61137.0,0.181567]
[1727953181663,0.002919,61138.0,61137.0,0.173567]
[1727953181896,0.000919,61138.0,61137.0,0.163567]
[1727953182117,0.000919,61138.0,61137.0,0.172567]
[1727953183275,0.000919,61138.0,61137.0,0.17256664]
[1727953183511,0.001919,61138.0,61137.0,0.18256664]
[1727953183992,0.000919,61138.0,61137.0,0.17256664]
[1727953184205,0.001919,61138.0,61137.0,0.18456664]
[1727953185752,0.001919,61138.0,61137.0,0.17556664]
[1727953187158,0.000919,61138.0,61137.0,0.52817782]
[1727953187402,0.001919,61138.0,61137.0,0.34975335]
[1727953191224,0.001919,61138.0,61137.0,0.18656664]
[1727953191938,0.001919,61138.0,61137.0,0.17656664]
[1727953192162,0.001919,61138.0,61137.0,0.18356664]
[1727953193535,0.080719,61138.0,61137.0,0.17056664]
[1727953193785,0.080719,61138.0,61137.0,0.16856664]
[1727953194014,0.080719,61138.0,61137.0,0.17456664]
[1727953194241,0.080719,61138.0,61137.0,0.16956664]
[1727953194473,0.081719,61138.0,61137.0,0.17156664]
[1727953194697,0.081719,61138.0,61137.0,0.16356664]
[1727953194926,0.083719,61138.0,61137.0,0.16356664]
[1727953195159,0.083719,61138.0,61137.0,0.16656664]
[1727953195392,0.081719,61138.0,61137.0,0.16656664]
[1727953195632,0.081719,61138.0,61137.0,0.16756664]
[1727953195633,0.001919,61138.0,61137.0,0.16756664]
[1727953197076,0.001919,61138.0,61137.0,0.16656664]
[1727953197311,0.001919,61138.0,61137.0,0.16756664]
[1727953197551,0.000919,61138.0,61137.0,0.16456664]
[1727953197784,0.000919,61138.0,61137.0,0.16656664]
[1727953198011,0.000919,61138.0,61137.0,0.16556664]
[1727953198237,0.000919,61138.0,61137.0,0.16956664]
[1727953198459,0.000919,61138.0,61137.0,0.33275335]
[1727953198694,0.000919,61138.0,61137.0,0.32675335]
[1727953198950,0.000919,61138.0,61137.0,0.33075335]
[1727953199176,0.000919,61138.0,61137.0,0.32775335]
[1727953200159,0.000919,61138.0,61137.0,0.32675335]
[1727953200413,0.000919,61138.0,61137.0,0.16356664]
[1727953200645,0.001919,61138.0,61137.0,0.16956664]
[1727953200933,0.000919,61138.0,61137.0,0.16956664]
[1727953201420,0.000919,61138.0,61137.0,0.33175335]
[1727953201681,0.000919,61138.0,61137.0,0.33338935]
[1727953201942,0.000919,61138.0,61137.0,0.43738935]
[1727953202189,0.000919,61138.0,61137.0,0.43238935]
[1727953202421,0.000919,61138.0,61137.0,0.44957285]
[1727953202654,0.001919,61138.0,61137.0,0.45657285]
[1727953202909,0.001919,61138.0,61137.0,0.91175085]
[1727953203160,0.001919,61138.0,61137.0,0.61903685]
[1727953203396,0.001919,61138.0,61137.0,0.43448935]
[1727953203653,0.001919,61138.0,61137.0,0.43438935]
[1727953203875,0.001919,61138.0,61137.0,0.43828935]
[1727953204104,0.001919,61138.0,61137.0,0.43778935]
[1727953204330,0.001919,61138.0,61137.0,0.43358935]
[1727953204588,0.000919,61138.0,61137.0,0.43848935]
[1727953204828,0.001919,61138.0,61137.0,0.45218935]
[1727953205049,0.001919,61138.0,61137.0,0.43768935]
[1727953205291,0.001919,61138.0,61137.0,0.44597808]
[1727953205532,0.001919,61138.0,61137.0,0.35148935]
[1727953205771,0.001919,61138.0,61137.0,0.17610264]
[1727953206034,0.001919,61138.0,61137.0,0.17570264]
[1727953206035,0.080919,61138.0,61137.0,0.17570264]
[1727953206269,0.080919,61138.0,61137.0,0.17540264]
[1727953206500,0.080919,61138.0,61137.0,0.17530264]
[1727953206756,0.001919,61138.0,61137.0,0.33808935]
[1727953207002,0.001919,61138.0,61137.0,0.36078935]
[1727953207238,0.000919,61138.0,61137.0,0.60810992]
[1727953207462,0.000919,61138.0,61137.0,0.61000952]
[1727953207691,0.001919,61138.0,61137.0,0.70790952]
[1727953207938,0.01932273,61141.0,61140.0,0.0069996]
[1727953208179,0.24828066,61162.0,61153.0,0.263524]
[1727953208412,0.24828066,61162.0,61153.0,0.26679397]
[1727953208660,0.12764866,61168.0,61153.0,0.286524]
[1727953208661,0.05264866,61168.0,61153.0,0.286524]
[1727953208898,0.05264866,61168.0,61153.0,0.346024]
[1727953209172,0.05264866,61168.0,61153.0,0.53221071]
[1727953209416,0.00382214,61168.0,61153.0,0.68601071]
[1727953210417,0.00382214,61168.0,61153.0,0.73142405]
[1727953210670,0.001819,61154.0,61153.0,0.74242405]
[1727953210934,0.000819,61154.0,61153.0,0.74542405]
[1727953211205,0.000819,61154.0,61153.0,0.74742365]
[1727953211412,0.001819,61154.0,61153.0,0.74742365]
[1727953211666,0.001819,61154.0,61153.0,0.74542405]
[1727953211907,0.001819,61154.0,61153.0,0.48601558]
[1727953212143,0.001819,61154.0,61153.0,0.46301558]
[1727953213820,0.001819,61154.0,61153.0,0.00830487]
[1727953213821,0.000819,61154.0,61153.0,0.00830487]
[1727953214048,0.001819,61154.0,61153.0,0.19782887]
[1727953214312,0.000819,61154.0,61153.0,0.175524]
[1727953214541,0.000819,61154.0,61153.0,0.34771071]
[1727953214767,0.001819,61154.0,61153.0,0.34771071]
[1727953214997,0.000819,61154.0,61153.0,0.32671071]
[1727953215229,0.000819,61154.0,61153.0,0.33271071]
[1727953215455,0.001819,61154.0,61153.0,0.33671071]
[1727953216804,0.001819,61154.0,61153.0,0.33271071]
[1727953217039,0.001819,61154.0,61153.0,0.33671071]
[1727953219440,0.001819,61154.0,61153.0,0.01]
[1727953219678,0.16534,61154.0,61153.0,0.01]
[1727953220184,0.17300333,61154.0,61153.0,0.01]
[1727953221103,0.25290333,61154.0,61153.0,0.01]
[1727953221856,0.00948233,61154.0,61153.0,0.33671071]
[1727953222083,0.00948233,61154.0,61153.0,0.52813518]
[1727953222331,0.001819,61154.0,61153.0,0.52813518]
[1727953223564,0.001819,61154.0,61153.0,0.62813518]
[1727953224788,0.001819,61154.0,61153.0,0.63634603]
[1727953225029,0.001819,61154.0,61153.0,1.04452003]
[1727953225268,0.001819,61154.0,61153.0,0.76341403]
[1727953225500,0.000819,61154.0,61153.0,0.75741403]
[1727953225973,0.000819,61154.0,61153.0,0.75341403]
[1727953226443,0.000819,61154.0,61153.0,0.76341403]
[1727953226698,0.000819,61154.0,61153.0,0.75341403]
[1727953226921,0.000819,61154.0,61153.0,1.36495803]
[1727953227159,0.000819,61154.0,61153.0,1.25262003]
[1727953227872,0.0009259,61154.0,61153.0,1.27562003]
[1727953228081,0.0009259,61154.0,61153.0,1.37602003]
[1727953228543,0.0009259,61154.0,61153.0,1.4215499]
[1727953228988,0.0009259,61154.0,61153.0,1.4105499]
[1727953229512,0.0009259,61154.0,61153.0,1.37602003]
[1727953229757,0.0009259,61154.0,61153.0,1.39320599]
[1727953229991,0.0009259,61154.0,61153.0,1.37602003]
[1727953230221,0.0009259,61154.0,61153.0,1.39320626]
[1727953230457,0.0009259,61154.0,61153.0,1.45496404]
[1727953230691,0.0009259,61154.0,61153.0,1.4688566]
[1727953230916,0.0009259,61154.0,61153.0,1.45168436]
[1727953231376,0.0009259,61154.0,61153.0,0.91680627]
[1727953231607,0.0009259,61154.0,61153.0,0.87799803]
[1727953232111,0.0009259,61154.0,61153.0,0.86399803]
[1727953232341,0.0009259,61154.0,61153.0,0.87799803]
[1727953235186,0.0009259,61154.0,61153.0,0.87299803]
[1727953235445,0.0009259,61154.0,61153.0,0.87799803]
[1727953235689,0.00099156,61154.0,61153.0,0.48492156]
[1727953235928,0.00099156,61154.0,61153.0,0.68134603]
[1727953236602,0.00099156,61154.0,61153.0,0.67634603]
[1727953236827,0.00099156,61154.0,61153.0,0.68134603]
[1727953237306,0.00099156,61154.0,61153.0,2.64334903]
[1727953237561,0.00099156,61154.0,61153.0,2.66304503]
[1727953238702,0.00099156,61154.0,61153.0,1.77049803]
[1727953239132,0.00099156,61154.0,61153.0,0.68134603]
[1727953239364,0.00099156,61154.0,61153.0,0.67634603]
[1727953240587,0.00099156,61154.0,61153.0,0.68134603]
[1727953241018,0.00099156,61154.0,61153.0,1.14961103]
[1727953241457,0.00099156,61154.0,61153.0,1.13561103]
[1727953241879,0.00099156,61154.0,61153.0,1.14861103]
[1727953242312,0.00099156,61154.0,61153.0,1.13561103]
[1727953242746,0.00099156,61154.0,61153.0,1.14961103]
[1727953245358,0.00099156,61154.0,61153.0,1.14461103]
[1727953246499,0.00099156,61154.0,61153.0,0.90633303]
[1727953247356,0.00099156,61154.0,61153.0,0.91133303]
[1727953249147,0.00099156,61154.0,61153.0,1.03391303]
[1727953249391,0.2521028,61168.0,61160.0,2.99798944]
[1727953249639,0.2521028,61168.0,61167.0,0.163486]
[1727953249854,0.00382214,61168.0,61167.0,0.32667271]
[1727953250095,0.163489,61166.0,61163.0,0.263495]
[1727953250312,0.256688,61167.0,61164.0,0.32668071]
[1727953250534,0.16349,61166.0,61164.0,0.16318671]
[1727953250778,0.17128992,61166.0,61164.0,0.16318671]
[1727953251047,0.0932,61167.0,61164.0,0.16318671]
[1727953251286,0.0932,61167.0,61165.0,0.163491]
[1727953251534,0.0932,61167.0,61166.0,0.16318671]
[1727953252033,0.00382214,61168.0,61166.0,0.16318671]
[1727953252305,0.00382214,61168.0,61167.0,0.163486]
[1727953252520,0.00382214,61168.0,61167.0,0.32667271]
[1727953253036,0.163489,61167.0,61164.0,0.163493]
[1727953253252,0.326984,61165.0,61160.0,2.99798944]
[1727953253493,0.1635,61162.0,61161.0,0.41146737]
[1727953253936,0.2405,61162.0,61161.0,0.16318671]
[1727953254436,0.163502,61161.0,61160.0,2.99798944]
[1727953255643,0.4306406,61161.0,61160.0,2.99798944]
[1727953255915,0.331302,61161.0,61160.0,2.99798944]
[1727953256170,0.331302,61161.0,61160.0,3.00198944]
[1727953257857,0.331302,61161.0,61160.0,2.99798944]
[1727953259513,0.33212,61161.0,61160.0,2.99798944]
[1727953260194,0.35774886,61161.0,61160.0,2.99798944]
[1727953261146,0.10244686,61161.0,61160.0,2.99798944]
[1727953261401,0.24032,61161.0,61160.0,2.99798944]
[1727953263095,0.33672,61161.0,61160.0,2.99798944]
[1727953263357,0.41045298,61161.0,61160.0,2.99798944]
[1727953263610,0.41245298,61161.0,61160.0,2.99798944]
[1727953263861,0.46571729,61161.0,61160.0,2.99788944]
[1727953264110,0.46571729,61161.0,61160.0,2.89778944]
[1727953264350,0.5402985,61161.0,61160.0,2.89778944]
[1727953264567,0.54030937,61161.0,61160.0,2.89778944]
[1727953264785,0.49135029,61161.0,61160.0,2.89778944]
[1727953265239,0.48804372,61161.0,61160.0,2.89778944]
[1727953265469,0.49232364,61161.0,61160.0,2.89778944]
[1727953265684,0.56576519,61161.0,61160.0,2.79768944]
[1727953265896,0.34268473,61161.0,61160.0,2.72938944]
[1727953266324,0.55482448,61161.0,61160.0,2.72938944]
[1727953266549,0.50587144,61161.0,61160.0,2.72938944]
[1727953267030,0.43213846,61161.0,61160.0,2.72938944]
[1727953268304,0.001818,61161.0,61160.0,3.06434516]
[1727953268539,0.000818,61161.0,61160.0,3.06434516]
[1727953268998,0.002818,61161.0,61160.0,3.25576963]
[1727953269226,0.002818,61161.0,61160.0,3.06434516]
[1727953269493,0.00382214,61168.0,61167.0,0.35491047]
[1727953269707,0.00382214,61168.0,61167.0,0.61809718]
[1727953270433,0.00382214,61168.0,61167.0,0.71219718]
[1727953272352,0.00464014,61168.0,61167.0,0.71219718]
[1727953272601,0.00464014,61168.0,61167.0,0.72619718]
[1727953273273,0.00464014,61168.0,61167.0,0.73453737]
[1727953274165,0.00464014,61168.0,61167.0,0.63453737]
[1727953274393,0.00464014,61168.0,61167.0,0.4431129]
[1727953276014,0.00464014,61168.0,61167.0,0.4571129]
[1727953282412,0.00464014,61168.0,61167.0,0.82663737]
[1727953282652,0.00464014,61168.0,61167.0,2.06473037]
[1727953282895,0.00464014,61168.0,61167.0,0.82663737]
[1727953283152,0.00464014,61168.0,61167.0,0.5571129]
[1727953283855,0.00464014,61168.0,61167.0,0.74853737]
[1727953284576,0.00464014,61168.0,61167.0,0.5571129]
[1727953291370,0.00464014,61168.0,61167.0,0.74853737]
[1727953293397,0.00464014,61168.0,61167.0,0.5571129]
[1727953295376,0.00464014,61168.0,61167.0,0.4571129]
[1727953295606,0.00464014,61168.0,61167.0,0.1995269]
[1727953296043,0.25102414,61168.0,61167.0,0.03634019]
[1727953296301,0.25102414,61168.0,61167.0,0.02234019]
[1727953296545,0.25102414,61168.0,61167.0,0.00834019]
[1727953297005,0.57799514,61168.0,61167.0,0.011]
[1727953297504,0.57799514,61168.0,61167.0,0.32667271]
[1727953297505,0.00464014,61168.0,61167.0,0.32667271]
[1727953297748,0.00464014,61168.0,61167.0,0.53017271]
[1727953298233,0.00464014,61168.0,61167.0,0.51717271]
[1727953298490,0.00464014,61168.0,61167.0,0.51817271]
[1727953298720,0.00464014,61168.0,61167.0,0.51717271]
[1727953298949,0.00464014,61168.0,61167.0,0.53017271]
[1727953299179,0.00464014,61168.0,61167.0,0.53448369]
[1727953300109,0.00464014,61168.0,61167.0,0.54848369]
[1727953300355,0.00464014,61168.0,61167.0,0.55948369]
[1727953300595,0.00464014,61168.0,61167.0,0.46898369]
[1727953300855,0.24882414,61168.0,61167.0,0.014]
[1727953301113,0.3909353,61168.0,61167.0,0.014]
[1727953301333,0.3909353,61168.0,61167.0,0.013]
[1727953301812,0.3909353,61168.0,61167.0,0.014]
[1727953302079,0.3909353,61168.0,61161.0,0.24991666]
[1727953302080,0.163498,61163.0,61161.0,0.24991666]
[1727953302320,0.1635,61162.0,61161.0,0.24991666]
[1727953302546,0.1635,61162.0,61161.0,0.001636]
[1727953303229,0.1635,61162.0,61161.0,0.007636]
[1727953304141,0.1635,61162.0,61161.0,0.012636]
[1727953304587,0.1635,61162.0,61161.0,0.007636]
[1727953305081,0.1635,61162.0,61161.0,0.013636]
[1727953305298,0.1635,61162.0,61161.0,0.007636]
[1727953305743,0.1635,61162.0,61161.0,0.014636]
[1727953306215,0.1655,61162.0,61161.0,0.014636]
[1727953306471,0.1655,61162.0,61161.0,0.008636]
[1727953306703,0.1675,61162.0,61161.0,0.008636]
[1727953306935,0.30128775,61162.0,61161.0,0.008636]
[1727953307155,0.29928775,61162.0,61161.0,0.008636]
[1727953307579,0.30128775,61162.0,61161.0,0.008636]
[1727953307789,0.38208775,61162.0,61161.0,0.008636]
[1727953309126,0.64542536,61162.0,61161.0,0.001536]
[1727953309352,0.64542536,61162.0,61160.0,2.71329692]
[1727953309353,0.266102,61161.0,61160.0,2.71329692]
[1727953309574,0.64570906,61161.0,61160.0,2.71329692]
[1727953309807,0.64570906,61161.0,61160.0,1.54464947]
[1727953309808,0.74770906,61161.0,61160.0,1.54464947]
[1727953310078,0.69447542,61161.0,61160.0,1.22057612]
[1727953310326,0.69447542,61161.0,61160.0,1.13727612]
[1727953310327,0.71903918,61161.0,61160.0,1.13727612]
[1727953310547,0.64567542,61161.0,61160.0,1.13727612]
[1727953311035,0.64567542,61161.0,61160.0,1.08764935]
[1727953311277,0.64651032,61161.0,61160.0,0.94763928]
[1727953311511,0.74427349,61161.0,61160.0,0.93743505]
[1727953311772,0.64551032,61161.0,61160.0,0.93743505]
[1727953312020,0.74429195,61161.0,61160.0,0.93743505]
[1727953312263,0.74429195,61161.0,61160.0,0.93843505]
[1727953312527,0.46732361,61161.0,61160.0,0.36935786]
[1727953312755,0.0316349,61161.0,61160.0,0.36835786]
[1727953313032,0.0316349,61161.0,61160.0,0.36935786]
[1727953313033,0.2041369,61161.0,61160.0,0.36935786]
[1727953313279,0.30909044,61161.0,61160.0,0.36935786]
[1727953313510,0.36332361,61161.0,61160.0,0.36835786]
[1727953313742,0.37732361,61161.0,61160.0,0.36935786]
[1727953313981,0.5601815,61161.0,61160.0,0.36935786]
[1727953314209,0.5461815,61161.0,61160.0,0.36835786]
[1727953314435,0.5601815,61161.0,61160.0,0.36935786]
[1727953314690,0.39132361,61161.0,61160.0,0.36835786]
[1727953314934,0.2031369,61161.0,61160.0,0.36835786]
[1727953315164,0.177502,61161.0,61160.0,0.36835786]
[1727953315644,0.37968871,61161.0,61160.0,0.36935786]
[1727953315872,0.37968871,61161.0,61160.0,0.36835786]
[1727953315873,0.36568871,61161.0,61160.0,0.36835786]
[1727953316095,0.51949583,61161.0,61160.0,0.36835786]
[1727953316319,0.53149583,61161.0,61160.0,0.36835786]
[1727953317278,0.51749583,61161.0,61160.0,0.36735786]
[1727953317510,0.53149583,61161.0,61160.0,0.36835786]
[1727953317761,0.51949583,61161.0,61160.0,0.36835786]
[1727953317985,0.50549583,61161.0,61160.0,0.36735786]
[1727953318210,0.51949583,61161.0,61160.0,0.36835786]
[1727953318673,0.53349583,61161.0,61160.0,0.36935786]
[1727953318960,0.51949583,61161.0,61160.0,0.36835786]
[1727953319406,0.51949583,61161.0,61160.0,0.36935786]
[1727953319407,0.53349583,61161.0,61160.0,0.36935786]
[1727953319867,0.55912773,61161.0,61160.0,0.36935786]
[1727953320882,0.65912773,61161.0,61160.0,0.36935786]
[1727953321358,0.63349583,61161.0,61160.0,0.36935786]
[1727953322578,0.65912928,61161.0,61160.0,0.36935786]
[1727953322813,0.65912928,61161.0,61160.0,0.37099586]
[1727953325968,0.63349583,61161.0,61160.0,0.37099586]
[1727953327405,0.35468871,61161.0,61160.0,0.37099586]
[1727953327928,0.191502,61161.0,61160.0,0.37099586]
[1727953328660,0.163502,61161.0,61160.0,0.36899586]
[1727953328923,0.177502,61161.0,61160.0,0.36999586]
[1727953329162,0.65538533,61161.0,61160.0,0.36899586]
[1727953329394,0.70901589,61161.0,61160.0,0.36999586]
[1727953329639,0.80901589,61161.0,61160.0,0.36999586]
[1727953329906,0.86210856,61161.0,61160.0,0.36999586]
[1727953330136,0.87610856,61161.0,61160.0,0.37099586]
[1727953330367,0.87610856,61161.0,61160.0,0.27560629]
[1727953330595,0.93527132,61161.0,61160.0,0.27460629]
[1727953330848,0.85710856,61161.0,61160.0,0.27360629]
[1727953331075,0.88010856,61161.0,61160.0,0.27560629]
[1727953331346,0.002,61160.0,61159.0,0.001636]
[1727953331615,0.165524,61153.0,61152.0,0.24828066]
[1727953331856,0.64313518,61153.0,61152.0,0.24828066]
[1727953332097,0.188545,61145.0,61144.0,0.24926276]
[1727953332328,0.72742638,61145.0,61144.0,0.24926276]
[1727953332574,0.72742638,61145.0,61137.0,0.24991666]